[Event "*** Titled Tuesday Blitz"]
[Site "Chess.com"]
[Date "2020.10.20"]
[Round "3"]
[White "Beca95"]
[Black "Margency"]
[Result "1/2-1/2"]
[WhiteElo "2893"]
[BlackElo "2679"]
[TimeControl "180+1"]
[EndTime "10:29:43 PDT"]
[Termination "Game drawn - insufficient material"]

1. Nf3 {[%clk 0:03:00.9]} 1... Nf6 {[%clk 0:02:59]} 2. c4 {[%clk 0:03:01.1]}
2... e6 {[%clk 0:02:58.9]} 3. Nc3 {[%clk 0:03:01.1]} 3... d5 {[%clk 0:02:59.5]}
4. e3 {[%clk 0:02:59.7]} 4... c5 {[%clk 0:02:58.3]} 5. cxd5 {[%clk 0:02:58.4]}
5... exd5 {[%clk 0:02:58.4]} 6. Bb5+ {[%clk 0:02:57.5]} 6... Bd7 {[%clk
0:02:57.6]} 7. Bxd7+ {[%clk 0:02:56.2]} 7... Qxd7 {[%clk 0:02:58.1]} 8. d4
{[%clk 0:02:56.2]} 8... Nc6 {[%clk 0:02:58.2]} 9. O-O {[%clk 0:02:56]} 9... c4
{[%clk 0:02:48]} 10. b3 {[%clk 0:02:54.7]} 10... Bb4 {[%clk 0:02:43]} 11. Ne2
{[%clk 0:02:53.3]} 11... cxb3 {[%clk 0:02:36.5]} 12. Qxb3 {[%clk 0:02:54.2]}
12... O-O {[%clk 0:02:33.3]} 13. Ne5 {[%clk 0:02:50.8]} 13... Qe7 {[%clk
0:02:28.3]} 14. Rb1 {[%clk 0:02:49.6]} 14... Bd6 {[%clk 0:02:24.9]} 15. Qxb7
{[%clk 0:02:39.2]} 15... Qxb7 {[%clk 0:02:23.6]} 16. Rxb7 {[%clk 0:02:40.1]}
16... Nxe5 {[%clk 0:02:24.1]} 17. dxe5 {[%clk 0:02:39.9]} 17... Bxe5 {[%clk
0:02:24.5]} 18. Ba3 {[%clk 0:02:39.7]} 18... Rfc8 {[%clk 0:02:19]} 19. Rc1
{[%clk 0:02:24.8]} 19... Rxc1+ {[%clk 0:02:06.5]} 20. Bxc1 {[%clk 0:02:24.1]}
20... h5 {[%clk 0:01:53.9]} 21. g3 {[%clk 0:02:18.9]} 21... a5 {[%clk
0:01:46.6]} 22. Bb2 {[%clk 0:02:17.9]} 22... Bxb2 {[%clk 0:01:42.1]} 23. Rxb2
{[%clk 0:02:18.8]} 23... Rc8 {[%clk 0:01:42.6]} 24. Nd4 {[%clk 0:02:18.6]} 24...
Rc4 {[%clk 0:01:39]} 25. Kg2 {[%clk 0:02:18.1]} 25... Ra4 {[%clk 0:01:33]} 26.
h3 {[%clk 0:02:17.9]} 26... g6 {[%clk 0:01:29.9]} 27. Kf3 {[%clk 0:02:13.8]}
27... Ne4 {[%clk 0:01:28.8]} 28. Rc2 {[%clk 0:02:12.7]} 28... Kg7 {[%clk
0:01:25.7]} 29. g4 {[%clk 0:02:12.4]} 29... hxg4+ {[%clk 0:01:24.7]} 30. hxg4
{[%clk 0:02:13.3]} 30... Kf6 {[%clk 0:01:24.3]} 31. Kg2 {[%clk 0:02:00]} 31...
Rc4 {[%clk 0:01:14]} 32. Rb2 {[%clk 0:01:57.4]} 32... Ra4 {[%clk 0:01:11.8]} 33.
f4 {[%clk 0:01:11.6]} 33... Nc3 {[%clk 0:01:07.2]} 34. g5+ {[%clk 0:01:11.3]}
34... Kg7 {[%clk 0:01:07.3]} 35. Rb7 {[%clk 0:01:11.2]} 35... Rxa2+ {[%clk
0:01:03.2]} 36. Kh3 {[%clk 0:01:11.2]} 36... Ne4 {[%clk 0:00:59.2]} 37. Ne6+
{[%clk 0:01:09.9]} 37... Kg8 {[%clk 0:00:59.4]} 38. Rb8+ {[%clk 0:01:06.9]}
38... Kh7 {[%clk 0:00:59.1]} 39. Nd8 {[%clk 0:01:04.3]} 39... Ra3 {[%clk
0:00:48.7]} 40. Nxf7 {[%clk 0:01:01.6]} 40... Rxe3+ {[%clk 0:00:48.8]} 41. Kg2
{[%clk 0:00:57.3]} 41... a4 {[%clk 0:00:47.2]} 42. Ne5 {[%clk 0:00:54.2]} 42...
Nxg5 {[%clk 0:00:42.2]} 43. Rb7+ {[%clk 0:00:54.1]} 43... Kg8 {[%clk 0:00:42.2]}
44. Nxg6 {[%clk 0:00:54.3]} 44... Ne4 {[%clk 0:00:37]} 45. Ne7+ {[%clk
0:00:53.2]} 45... Kf8 {[%clk 0:00:36.5]} 46. Nxd5 {[%clk 0:00:53]} 46... Rg3+
{[%clk 0:00:35.6]} 47. Kh2 {[%clk 0:00:52]} 47... Rd3 {[%clk 0:00:36]} 48. Nc7
{[%clk 0:00:43.9]} 48... a3 {[%clk 0:00:32]} 49. Ra7 {[%clk 0:00:44]} 49... Nd6
{[%clk 0:00:25.1]} 50. Ne6+ {[%clk 0:00:43.3]} 50... Ke8 {[%clk 0:00:24]} 51.
Nc5 {[%clk 0:00:43.2]} 51... Rc3 {[%clk 0:00:23.2]} 52. Ne6 {[%clk 0:00:41.8]}
52... Rc2+ {[%clk 0:00:22.1]} 53. Kh3 {[%clk 0:00:41.1]} 53... a2 {[%clk
0:00:22.7]} 54. Nd4 {[%clk 0:00:34.8]} 54... Rd2 {[%clk 0:00:22.1]} 55. Kg4
{[%clk 0:00:32.1]} 55... Rxd4 {[%clk 0:00:18.5]} 56. Rxa2 {[%clk 0:00:31]} 56...
Ke7 {[%clk 0:00:19]} 57. Ra6 {[%clk 0:00:27.6]} 57... Ke6 {[%clk 0:00:18.6]} 58.
Rb6 {[%clk 0:00:27.9]} 58... Ra4 {[%clk 0:00:18]} 59. Rc6 {[%clk 0:00:28.1]}
59... Rd4 {[%clk 0:00:17.7]} 60. Ra6 {[%clk 0:00:27.9]} 60... Kf7 {[%clk
0:00:17.9]} 61. Kg5 {[%clk 0:00:26.9]} 61... Ne4+ {[%clk 0:00:16.9]} 62. Kf5
{[%clk 0:00:26.3]} 62... Ng3+ {[%clk 0:00:17.2]} 63. Kg4 {[%clk 0:00:25.7]}
63... Ne2 {[%clk 0:00:17.5]} 64. Kg5 {[%clk 0:00:25.3]} 64... Nxf4 {[%clk
0:00:17.4]} 65. Rf6+ {[%clk 0:00:24.9]} 65... Ke7 {[%clk 0:00:17]} 66. Rxf4
{[%clk 0:00:25.8]} 66... Rxf4 {[%clk 0:00:17.6]} 67. Kxf4 {[%clk 0:00:26.7]}
1/2-1/2

[Event "*** Titled Tuesday Blitz"]
[Site "Chess.com"]
[Date "2020.10.20"]
[Round "3"]
[White "chessmadara"]
[Black "Trickov"]
[Result "1-0"]
[WhiteElo "2140"]
[BlackElo "2334"]
[TimeControl "180+1"]
[EndTime "10:29:43 PDT"]
[Termination "chessmadara won on time"]

1. e4 {[%clk 0:03:00.9]} 1... c5 {[%clk 0:02:18.8]} 2. Nf3 {[%clk 0:02:59.4]}
2... d6 {[%clk 0:02:11.5]} 3. d4 {[%clk 0:02:58.8]} 3... Nf6 {[%clk 0:02:10.4]}
4. Nc3 {[%clk 0:02:56.5]} 4... cxd4 {[%clk 0:02:09.8]} 5. Nxd4 {[%clk
0:02:57.4]} 5... a6 {[%clk 0:02:10.3]} 6. Bg5 {[%clk 0:02:56.2]} 6... e6 {[%clk
0:02:10.1]} 7. Qd2 {[%clk 0:02:55.1]} 7... Nc6 {[%clk 0:02:08]} 8. O-O-O {[%clk
0:02:51.7]} 8... Qb6 {[%clk 0:02:06.6]} 9. Kb1 {[%clk 0:02:47.2]} 9... Nxd4
{[%clk 0:02:04.6]} 10. Qxd4 {[%clk 0:02:46.8]} 10... Qxd4 {[%clk 0:02:04.5]} 11.
Rxd4 {[%clk 0:02:47.7]} 11... Be7 {[%clk 0:02:02.9]} 12. f4 {[%clk 0:02:23.9]}
12... h6 {[%clk 0:01:46.5]} 13. Bxf6 {[%clk 0:02:23.1]} 13... gxf6 {[%clk
0:01:45.2]} 14. Be2 {[%clk 0:02:22]} 14... h5 {[%clk 0:01:40.6]} 15. Bf3 {[%clk
0:02:20.1]} 15... Bd7 {[%clk 0:01:31.9]} 16. Rhd1 {[%clk 0:02:14.7]} 16... Bc6
{[%clk 0:01:30.5]} 17. a4 {[%clk 0:01:50.5]} 17... h4 {[%clk 0:01:27.1]} 18. h3
{[%clk 0:01:44.5]} 18... Bf8 {[%clk 0:01:11.5]} 19. b4 {[%clk 0:01:36.5]} 19...
Rg8 {[%clk 0:00:48.2]} 20. b5 {[%clk 0:01:30.9]} 20... axb5 {[%clk 0:00:47.3]}
21. axb5 {[%clk 0:01:31.8]} 21... Bd7 {[%clk 0:00:47.3]} 22. Kb2 {[%clk
0:01:23.9]} 22... Ra5 {[%clk 0:00:42.5]} 23. Ra1 {[%clk 0:01:13.5]} 23... Rxa1
{[%clk 0:00:36.4]} 24. Kxa1 {[%clk 0:01:14.4]} 24... Ke7 {[%clk 0:00:35.2]} 25.
Kb2 {[%clk 0:01:05.6]} 25... Bh6 {[%clk 0:00:33.2]} 26. f5 {[%clk 0:01:03.7]}
26... Bf4 {[%clk 0:00:30.7]} 27. Rc4 {[%clk 0:00:57.5]} 27... Be5 {[%clk
0:00:27.9]} 28. Rc7 {[%clk 0:00:45.6]} 28... Rb8 {[%clk 0:00:23.9]} 29. b6
{[%clk 0:00:45.2]} 29... Kd8 {[%clk 0:00:21.8]} 30. Kb3 {[%clk 0:00:42.8]} 30...
Bd4 {[%clk 0:00:21.8]} 31. fxe6 {[%clk 0:00:34.5]} 31... fxe6 {[%clk 0:00:20.9]}
32. Na4 {[%clk 0:00:25.8]} 32... Bxb6 {[%clk 0:00:20]} 33. Rxd7+ {[%clk
0:00:24.1]} 33... Kxd7 {[%clk 0:00:18.2]} 34. Nxb6+ {[%clk 0:00:25]} 34... Kc7
{[%clk 0:00:17.3]} 35. Nc4 {[%clk 0:00:25.2]} 35... Ra8 {[%clk 0:00:16.3]} 36.
Na3 {[%clk 0:00:23.5]} 36... Ra5 {[%clk 0:00:15.4]} 37. Kb4 {[%clk 0:00:22.4]}
37... Rg5 {[%clk 0:00:12.6]} 38. Nb5+ {[%clk 0:00:21.4]} 38... Kd7 {[%clk
0:00:12.8]} 39. Nd4 {[%clk 0:00:21.5]} 39... Rc5 {[%clk 0:00:11]} 40. c4 {[%clk
0:00:19.3]} 40... Rc8 {[%clk 0:00:10.5]} 41. Bg4 {[%clk 0:00:19.3]} 41... Re8
{[%clk 0:00:08.7]} 42. Kb5 {[%clk 0:00:18.1]} 42... f5 {[%clk 0:00:07.5]} 43.
exf5 {[%clk 0:00:17.8]} 43... exf5 {[%clk 0:00:04.9]} 44. Nxf5 {[%clk
0:00:16.1]} 44... Kc7 {[%clk 0:00:03.9]} 45. Nxh4 {[%clk 0:00:15.2]} 45... Re5+
{[%clk 0:00:03.1]} 46. Kb4 {[%clk 0:00:14.6]} 46... d5 {[%clk 0:00:02.9]} 47.
Ng6 {[%clk 0:00:13.6]} 47... Rg5 {[%clk 0:00:01.1]} 48. Nf4 {[%clk 0:00:11.9]}
1-0

[Event "*** Titled Tuesday Blitz"]
[Site "Chess.com"]
[Date "2020.10.20"]
[Round "3"]
[White "Gogolev_Artemy"]
[Black "Harsha_Bharathakoti"]
[Result "1/2-1/2"]
[WhiteElo "2516"]
[BlackElo "2774"]
[TimeControl "180+1"]
[EndTime "10:29:45 PDT"]
[Termination "Game drawn - insufficient material"]

1. Nf3 {[%clk 0:03:00.9]} 1... d5 {[%clk 0:02:57.4]} 2. c4 {[%clk 0:02:59.7]}
2... d4 {[%clk 0:02:57.4]} 3. g3 {[%clk 0:02:56.5]} 3... Nc6 {[%clk 0:02:54.8]}
4. Bg2 {[%clk 0:02:53.3]} 4... e5 {[%clk 0:02:54.1]} 5. O-O {[%clk 0:02:51.9]}
5... Nf6 {[%clk 0:02:47.7]} 6. d3 {[%clk 0:02:51.2]} 6... a5 {[%clk 0:02:38.5]}
7. e3 {[%clk 0:02:48.1]} 7... Be7 {[%clk 0:02:37.6]} 8. exd4 {[%clk 0:02:46.6]}
8... exd4 {[%clk 0:02:38.5]} 9. Re1 {[%clk 0:02:43.5]} 9... O-O {[%clk
0:02:38.5]} 10. Na3 {[%clk 0:02:42.3]} 10... Bb4 {[%clk 0:02:31]} 11. Bd2 {[%clk
0:02:35.5]} 11... Bf5 {[%clk 0:02:31.2]} 12. Ne5 {[%clk 0:01:59.2]} 12... Nxe5
{[%clk 0:02:11.9]} 13. Rxe5 {[%clk 0:02:00.1]} 13... Bxd3 {[%clk 0:02:11]} 14.
Bxb4 {[%clk 0:01:53]} 14... axb4 {[%clk 0:02:10.9]} 15. Qxd3 {[%clk 0:01:52.7]}
15... bxa3 {[%clk 0:02:10.7]} 16. bxa3 {[%clk 0:01:52.3]} 16... Qd6 {[%clk
0:01:57.4]} 17. Qf5 {[%clk 0:01:32.6]} 17... Rxa3 {[%clk 0:01:39.7]} 18. Bxb7
{[%clk 0:01:26.7]} 18... d3 {[%clk 0:01:27.9]} 19. Rd1 {[%clk 0:01:17.8]} 19...
d2 {[%clk 0:01:21.4]} 20. Re2 {[%clk 0:00:58.3]} 20... Rxa2 {[%clk 0:01:16.2]}
21. Qb1 {[%clk 0:00:39.5]} 21... Ra4 {[%clk 0:00:27]} 22. Rexd2 {[%clk 0:00:35]}
22... Qc5 {[%clk 0:00:26.5]} 23. Bd5 {[%clk 0:00:23.9]} 23... c6 {[%clk
0:00:22.8]} 24. Bf3 {[%clk 0:00:23.1]} 24... Rxc4 {[%clk 0:00:22]} 25. Rd8
{[%clk 0:00:20]} 25... Rb4 {[%clk 0:00:16.3]} 26. Rxf8+ {[%clk 0:00:19]} 26...
Qxf8 {[%clk 0:00:14.6]} 27. Qxb4 {[%clk 0:00:17.7]} 27... Qxb4 {[%clk
0:00:15.5]} 28. Rd8+ {[%clk 0:00:17.8]} 28... Qf8 {[%clk 0:00:16.1]} 29. Rxf8+
{[%clk 0:00:18.2]} 29... Kxf8 {[%clk 0:00:17]} 30. Bxc6 {[%clk 0:00:18.5]} 30...
Ke7 {[%clk 0:00:17.9]} 31. Bf3 {[%clk 0:00:18.5]} 31... Kd6 {[%clk 0:00:18.8]}
32. Kf1 {[%clk 0:00:18.8]} 32... Nd7 {[%clk 0:00:19.7]} 33. Ke2 {[%clk
0:00:19.1]} 33... Ne5 {[%clk 0:00:20.6]} 34. Be4 {[%clk 0:00:19.1]} 34... g6
{[%clk 0:00:20.4]} 35. h4 {[%clk 0:00:19.4]} 35... f5 {[%clk 0:00:20.5]} 36. Bc2
{[%clk 0:00:19.3]} 36... Kd5 {[%clk 0:00:21]} 37. Ke3 {[%clk 0:00:19.5]} 37...
Ng4+ {[%clk 0:00:21]} 38. Kf3 {[%clk 0:00:19.6]} 38... Kd4 {[%clk 0:00:21.6]}
39. Bb3 {[%clk 0:00:17.9]} 39... h6 {[%clk 0:00:18.8]} 40. Bg8 {[%clk
0:00:16.6]} 40... Ne5+ {[%clk 0:00:17.9]} 41. Kf4 {[%clk 0:00:16.4]} 41... Nd3+
{[%clk 0:00:17.8]} 42. Kf3 {[%clk 0:00:16.7]} 42... Ne1+ {[%clk 0:00:15.6]} 43.
Ke2 {[%clk 0:00:15.4]} 43... Nd3 {[%clk 0:00:16]} 44. Bh7 {[%clk 0:00:13.4]}
44... Nc1+ {[%clk 0:00:10.9]} 45. Kf3 {[%clk 0:00:13]} 45... Nd3 {[%clk
0:00:10]} 46. Bxg6 {[%clk 0:00:11.4]} 46... Ne5+ {[%clk 0:00:10.2]} 47. Kf4
{[%clk 0:00:11.9]} 47... Nxg6+ {[%clk 0:00:11]} 48. Kxf5 {[%clk 0:00:12.4]}
48... Ne5 {[%clk 0:00:11.9]} 49. g4 {[%clk 0:00:12]} 49... Nf3 {[%clk
0:00:09.9]} 50. g5 {[%clk 0:00:11]} 50... Nxh4+ {[%clk 0:00:09.9]} 51. Kg4
{[%clk 0:00:10.2]} 51... hxg5 {[%clk 0:00:10.8]} 52. Kxg5 {[%clk 0:00:10.1]}
52... Ke4 {[%clk 0:00:10.9]} 53. Kxh4 {[%clk 0:00:09.4]} 53... Kf3 {[%clk
0:00:11.4]} 54. Kg5 {[%clk 0:00:09.8]} 54... Kxf2 {[%clk 0:00:12.3]} 1/2-1/2

[Event "*** Titled Tuesday Blitz"]
[Site "Chess.com"]
[Date "2020.10.20"]
[Round "3"]
[White "oneshot007"]
[Black "Boundless_Strike"]
[Result "1-0"]
[WhiteElo "2324"]
[BlackElo "2491"]
[TimeControl "180+1"]
[EndTime "10:29:46 PDT"]
[Termination "oneshot007 won by resignation"]

1. e4 {[%clk 0:03:00.9]} 1... e5 {[%clk 0:02:59.9]} 2. Nf3 {[%clk 0:03:00.8]}
2... d5 {[%clk 0:02:58.3]} 3. Nxe5 {[%clk 0:02:47.6]} 3... Bd6 {[%clk
0:02:56.4]} 4. d4 {[%clk 0:02:42.2]} 4... dxe4 {[%clk 0:02:56.6]} 5. Bc4 {[%clk
0:02:40.3]} 5... Bxe5 {[%clk 0:02:56.7]} 6. Qh5 {[%clk 0:02:36.3]} 6... Qe7
{[%clk 0:02:56.4]} 7. Qxe5 {[%clk 0:02:30.6]} 7... Qxe5 {[%clk 0:02:55.6]} 8.
dxe5 {[%clk 0:02:31.5]} 8... Nc6 {[%clk 0:02:56.2]} 9. Nc3 {[%clk 0:02:25.1]}
9... Nxe5 {[%clk 0:02:54.4]} 10. Nd5 {[%clk 0:02:23.9]} 10... Kd7 {[%clk
0:02:30]} 11. Bb3 {[%clk 0:02:23.7]} 11... c6 {[%clk 0:02:25.8]} 12. Nc3 {[%clk
0:02:23.7]} 12... f5 {[%clk 0:02:24.3]} 13. Bf4 {[%clk 0:02:23.3]} 13... Ng6
{[%clk 0:02:19.5]} 14. O-O-O+ {[%clk 0:02:23.2]} 14... Ke8 {[%clk 0:02:20.2]}
15. Bg5 {[%clk 0:02:14.1]} 15... N8e7 {[%clk 0:02:15.7]} 16. h4 {[%clk
0:01:44.3]} 16... h6 {[%clk 0:02:13.4]} 17. Be3 {[%clk 0:01:44.4]} 17... f4
{[%clk 0:02:08.8]} 18. Bd4 {[%clk 0:01:44.4]} 18... Nf5 {[%clk 0:02:08.2]} 19.
h5 {[%clk 0:01:40.5]} 19... Ngh4 {[%clk 0:02:01]} 20. Rhe1 {[%clk 0:01:35.9]}
20... Nxd4 {[%clk 0:01:50.1]} 21. Rxd4 {[%clk 0:01:29.7]} 21... Ke7 {[%clk
0:01:34]} 22. Rdxe4+ {[%clk 0:01:28.6]} 22... Kd6 {[%clk 0:01:25.3]} 23. Rxf4
{[%clk 0:01:23.8]} 23... Nxg2 {[%clk 0:01:22.3]} 24. Rd4+ {[%clk 0:01:14.8]}
24... Kc5 {[%clk 0:01:19.9]} 25. Rc4+ {[%clk 0:01:11.3]} 25... Kb6 {[%clk
0:01:19.2]} 26. Re7 {[%clk 0:01:11]} 26... Rf8 {[%clk 0:01:09.7]} 27. Na4+
{[%clk 0:00:56.9]} 27... Ka5 {[%clk 0:01:09.9]} 28. Rc5+ {[%clk 0:00:46.2]}
28... b5 {[%clk 0:01:07.8]} 29. Nc3 {[%clk 0:00:30.7]} 29... Rxf2 {[%clk
0:01:05.6]} 30. a4 {[%clk 0:00:25.3]} 30... a6 {[%clk 0:01:00.9]} 31. Rxg7
{[%clk 0:00:20.3]} 31... Bf5 {[%clk 0:00:46.7]} 32. Kb1 {[%clk 0:00:15.4]} 32...
Re8 {[%clk 0:00:39.1]} 33. axb5 {[%clk 0:00:12.3]} 33... axb5 {[%clk 0:00:38.5]}
34. Rxc6 {[%clk 0:00:09.9]} 34... Ra8 {[%clk 0:00:17.5]} 35. Rb7 {[%clk
0:00:09.3]} 35... Rf1+ {[%clk 0:00:13.4]} 36. Ka2 {[%clk 0:00:09.1]} 36... Kb4+
{[%clk 0:00:13.1]} 37. Ba4 {[%clk 0:00:06.6]} 37... Ra5 {[%clk 0:00:05.5]} 38.
Rxb5+ {[%clk 0:00:05.7]} 38... Rxb5 {[%clk 0:00:05.6]} 39. Bxb5 {[%clk
0:00:06.2]} 39... Bxc2 {[%clk 0:00:05.4]} 40. Bxf1 {[%clk 0:00:05.7]} 40... Bb3+
{[%clk 0:00:05.6]} 41. Kb1 {[%clk 0:00:05.2]} 41... Ne3 {[%clk 0:00:05.9]} 42.
Rb6+ {[%clk 0:00:04.9]} 42... Kc5 {[%clk 0:00:04.5]} 43. Rxb3 {[%clk 0:00:05.1]}
43... Nxf1 {[%clk 0:00:05.4]} 44. Rb5+ {[%clk 0:00:05.1]} 44... Kc4 {[%clk
0:00:05.8]} 45. Rb6 {[%clk 0:00:05.6]} 45... Nd2+ {[%clk 0:00:06.4]} 46. Kc2
{[%clk 0:00:05.9]} 46... Nf3 {[%clk 0:00:07.3]} 47. Rxh6 {[%clk 0:00:05.8]}
47... Nd4+ {[%clk 0:00:08]} 48. Kb1 {[%clk 0:00:05.6]} 48... Kb3 {[%clk
0:00:07.4]} 49. Rb6+ {[%clk 0:00:05.7]} 49... Kc4 {[%clk 0:00:07.4]} 50. h6
{[%clk 0:00:06.2]} 50... Nf3 {[%clk 0:00:08.2]} 51. h7 {[%clk 0:00:06.5]} 51...
Nd2+ {[%clk 0:00:09.1]} 52. Kc2 {[%clk 0:00:06.6]} 52... Nf3 {[%clk 0:00:10]}
53. h8=Q {[%clk 0:00:06.9]} 53... Nd4+ {[%clk 0:00:09.1]} 54. Kb1 {[%clk
0:00:07]} 1-0

[Event "*** Titled Tuesday Blitz"]
[Site "Chess.com"]
[Date "2020.10.20"]
[Round "3"]
[White "ViktoriyaTarasova"]
[Black "Skat2704"]
[Result "1-0"]
[WhiteElo "2253"]
[BlackElo "1197"]
[TimeControl "180+1"]
[EndTime "10:29:46 PDT"]
[Termination "ViktoriyaTarasova won by resignation"]

1. d4 {[%clk 0:03:00.9]} 1... d5 {[%clk 0:02:59.6]} 2. c4 {[%clk 0:03:00.7]}
2... e6 {[%clk 0:02:59.4]} 3. Nc3 {[%clk 0:02:59.9]} 3... Be7 {[%clk 0:02:59.4]}
4. cxd5 {[%clk 0:02:59.4]} 4... exd5 {[%clk 0:02:59.1]} 5. Bf4 {[%clk
0:03:00.1]} 5... Nf6 {[%clk 0:02:58.5]} 6. Qc2 {[%clk 0:02:59.6]} 6... O-O
{[%clk 0:02:57.3]} 7. h3 {[%clk 0:02:59]} 7... b6 {[%clk 0:02:56.2]} 8. e3
{[%clk 0:02:59.1]} 8... Bb7 {[%clk 0:02:55.6]} 9. Bd3 {[%clk 0:02:59.6]} 9... c5
{[%clk 0:02:53.6]} 10. Nf3 {[%clk 0:02:59.1]} 10... Na6 {[%clk 0:02:47.8]} 11.
a3 {[%clk 0:02:58.7]} 11... Nc7 {[%clk 0:02:46.4]} 12. O-O {[%clk 0:02:57]}
12... Ne6 {[%clk 0:02:46.3]} 13. Bh2 {[%clk 0:02:56.2]} 13... h6 {[%clk
0:02:44.8]} 14. Rfd1 {[%clk 0:02:50.5]} 14... Rc8 {[%clk 0:02:37.8]} 15. Bf5
{[%clk 0:02:48.7]} 15... a6 {[%clk 0:02:30.1]} 16. Ne5 {[%clk 0:02:40.2]} 16...
cxd4 {[%clk 0:02:20.7]} 17. exd4 {[%clk 0:02:39.2]} 17... b5 {[%clk 0:02:15.7]}
18. Qe2 {[%clk 0:02:35.3]} 18... Qb6 {[%clk 0:02:13.8]} 19. Qe3 {[%clk
0:02:20.3]} 19... Ng5 {[%clk 0:01:42.2]} 20. Bxc8 {[%clk 0:02:15]} 20... Rxc8
{[%clk 0:01:40.5]} 21. Rac1 {[%clk 0:02:11.9]} 21... Nge4 {[%clk 0:01:37]} 22.
Ne2 {[%clk 0:02:05.2]} 22... Rd8 {[%clk 0:01:29.3]} 23. Qd3 {[%clk 0:01:58.1]}
23... Nd6 {[%clk 0:01:23.1]} 24. b3 {[%clk 0:01:54.8]} 24... Nfe4 {[%clk
0:01:20.1]} 25. Rc2 {[%clk 0:01:53.4]} 25... Bh4 {[%clk 0:01:10.6]} 26. g3
{[%clk 0:01:49.8]} 26... Bf6 {[%clk 0:01:09.3]} 27. Ng4 {[%clk 0:01:37.9]} 27...
Bg5 {[%clk 0:01:07.4]} 28. h4 {[%clk 0:01:35.5]} 28... Be7 {[%clk 0:01:06.5]}
29. f3 {[%clk 0:01:24.1]} 29... Nf6 {[%clk 0:01:03.1]} 30. Nxf6+ {[%clk
0:01:21.9]} 30... Bxf6 {[%clk 0:01:03.1]} 31. Kg2 {[%clk 0:01:19.4]} 31... Re8
{[%clk 0:00:56.7]} 32. Nf4 {[%clk 0:01:08.9]} 32... a5 {[%clk 0:00:46.3]} 33.
Re2 {[%clk 0:01:03.9]} 33... Rd8 {[%clk 0:00:46]} 34. Nh5 {[%clk 0:01:01.8]}
34... Ne4 {[%clk 0:00:30.4]} 35. fxe4 {[%clk 0:00:51.6]} 35... dxe4 {[%clk
0:00:27.8]} 36. Nxf6+ {[%clk 0:00:46.9]} 36... Qxf6 {[%clk 0:00:27.4]} 37. Qe3
{[%clk 0:00:46.5]} 37... Qf3+ {[%clk 0:00:27.1]} 38. Kg1 {[%clk 0:00:44.5]}
38... Qg4 {[%clk 0:00:25.9]} 39. Rc1 {[%clk 0:00:39.6]} 39... Rd6 {[%clk
0:00:24.6]} 40. Rf2 {[%clk 0:00:38.1]} 40... Qd7 {[%clk 0:00:21]} 41. Rd2 {[%clk
0:00:35.7]} 41... Rg6 {[%clk 0:00:20]} 42. Rdc2 {[%clk 0:00:25.4]} 42... Rd6
{[%clk 0:00:15.7]} 43. Rc7 {[%clk 0:00:25]} 43... Qg4 {[%clk 0:00:14.8]} 44.
Rxb7 {[%clk 0:00:24]} 44... Rf6 {[%clk 0:00:15]} 45. Rf1 {[%clk 0:00:16.4]}
45... Rxf1+ {[%clk 0:00:14.8]} 46. Kxf1 {[%clk 0:00:16.6]} 46... Qd1+ {[%clk
0:00:15.4]} 47. Kg2 {[%clk 0:00:14.3]} 47... Qc2+ {[%clk 0:00:15.6]} 48. Qf2
{[%clk 0:00:14.2]} 48... Qc6 {[%clk 0:00:13.6]} 49. Rb8+ {[%clk 0:00:14.1]}
49... Kh7 {[%clk 0:00:13.9]} 50. Qe3 {[%clk 0:00:13.4]} 50... g6 {[%clk
0:00:11.2]} 51. g4 {[%clk 0:00:13.6]} 51... Qc2+ {[%clk 0:00:11.1]} 52. Kh3
{[%clk 0:00:12.6]} 52... Qd1 {[%clk 0:00:09.5]} 53. Qf2 {[%clk 0:00:11.6]} 53...
Kg7 {[%clk 0:00:08.3]} 54. Be5+ {[%clk 0:00:10.6]} 1-0

[Event "*** Titled Tuesday Blitz"]
[Site "Chess.com"]
[Date "2020.10.20"]
[Round "3"]
[White "MPGM"]
[Black "shineatchess"]
[Result "1-0"]
[WhiteElo "2442"]
[BlackElo "2192"]
[TimeControl "180+1"]
[EndTime "10:29:46 PDT"]
[Termination "MPGM won on time"]

1. e4 {[%clk 0:03:00.9]} 1... Nf6 {[%clk 0:02:57.7]} 2. e5 {[%clk 0:02:59.6]}
2... Nd5 {[%clk 0:02:57.3]} 3. d4 {[%clk 0:02:59]} 3... d6 {[%clk 0:02:57]} 4.
Nf3 {[%clk 0:02:56.4]} 4... g6 {[%clk 0:02:55.9]} 5. c4 {[%clk 0:02:53.3]} 5...
Nb6 {[%clk 0:02:55.1]} 6. Nc3 {[%clk 0:02:51.7]} 6... Bg7 {[%clk 0:02:54.5]} 7.
Bf4 {[%clk 0:02:46.5]} 7... O-O {[%clk 0:02:47.9]} 8. Be2 {[%clk 0:02:44.5]}
8... Nc6 {[%clk 0:02:38.8]} 9. O-O {[%clk 0:02:42.8]} 9... Bg4 {[%clk
0:02:34.1]} 10. Re1 {[%clk 0:02:28]} 10... Bxf3 {[%clk 0:02:32.7]} 11. Bxf3
{[%clk 0:02:27.5]} 11... Nxc4 {[%clk 0:02:30.4]} 12. Qb3 {[%clk 0:02:21.8]}
12... Nb6 {[%clk 0:02:13.4]} 13. Rad1 {[%clk 0:02:19.5]} 13... Qc8 {[%clk
0:01:49.5]} 14. Bg3 {[%clk 0:01:55]} 14... a5 {[%clk 0:01:41.1]} 15. Nd5 {[%clk
0:01:31.3]} 15... Nxd5 {[%clk 0:01:29.2]} 16. Bxd5 {[%clk 0:01:30.6]} 16... a4
{[%clk 0:01:23.6]} 17. Qf3 {[%clk 0:01:27.7]} 17... Ra6 {[%clk 0:01:15.6]} 18.
e6 {[%clk 0:01:17.6]} 18... f5 {[%clk 0:01:06.8]} 19. Bh4 {[%clk 0:01:08.7]}
19... Qd8 {[%clk 0:00:53.8]} 20. Bxc6 {[%clk 0:00:54.4]} 20... Rxc6 {[%clk
0:00:51.7]} 21. Rc1 {[%clk 0:00:51.2]} 21... Rxc1 {[%clk 0:00:50.2]} 22. Rxc1
{[%clk 0:00:50.8]} 22... Bxd4 {[%clk 0:00:50.8]} 23. Qxb7 {[%clk 0:00:49.6]}
23... Bb6 {[%clk 0:00:43]} 24. Rc6 {[%clk 0:00:39.7]} 24... Qa8 {[%clk
0:00:35.4]} 25. Rxb6 {[%clk 0:00:34.1]} 25... cxb6 {[%clk 0:00:32.9]} 26. Qxe7
{[%clk 0:00:33.9]} 26... Qc6 {[%clk 0:00:29.1]} 27. h3 {[%clk 0:00:28.3]} 27...
Qc1+ {[%clk 0:00:24.1]} 28. Kh2 {[%clk 0:00:27.9]} 28... Qxb2 {[%clk 0:00:17.6]}
29. Qxd6 {[%clk 0:00:27]} 29... Qb5 {[%clk 0:00:15.6]} 30. e7 {[%clk 0:00:24.8]}
30... Re8 {[%clk 0:00:15.3]} 31. Qe6+ {[%clk 0:00:23.6]} 31... Kg7 {[%clk
0:00:15.5]} 32. Bf6+ {[%clk 0:00:22.2]} 32... Kh6 {[%clk 0:00:13]} 33. Qe3+
{[%clk 0:00:22.3]} 33... f4 {[%clk 0:00:11.9]} 34. Qxf4+ {[%clk 0:00:22.6]}
34... g5 {[%clk 0:00:09.9]} 35. Qd6 {[%clk 0:00:19.4]} 35... Qf5 {[%clk
0:00:04.5]} 36. Kg1 {[%clk 0:00:06.7]} 36... Qb1+ {[%clk 0:00:03.4]} 37. Kh2
{[%clk 0:00:06.2]} 37... Qf5 {[%clk 0:00:04]} 38. f3 {[%clk 0:00:05]} 38... Qf4+
{[%clk 0:00:03.7]} 39. Qxf4 {[%clk 0:00:03.7]} 39... gxf4 {[%clk 0:00:04.6]} 40.
Bd4 {[%clk 0:00:03]} 40... Rxe7 {[%clk 0:00:03.8]} 41. Bxb6 {[%clk 0:00:03]}
41... Re2 {[%clk 0:00:02.9]} 42. a3 {[%clk 0:00:02.3]} 42... Ra2 {[%clk
0:00:01.3]} 43. Bc5 {[%clk 0:00:02.3]} 43... Kg5 {[%clk 0:00:01.4]} 44. Be7+
{[%clk 0:00:02.3]} 44... Kf5 {[%clk 0:00:00.9]} 45. h4 {[%clk 0:00:02.7]} 1-0